bitfinex/quotes_ETHUSD_20250622
["timestamp","ask_amount","ask_price","bid_price","bid_amount"]
[1750602780788,16.531,2186.6,2185.3,1.1419]
[1750602780789,1.1323,2186.5,2185.3,1.1419]
[1750602781004,4.837,2186.4,2186.2,10.0]
[1750602781287,4.57293079,2186.8,2185.5,14.57561198]
[1750602781591,0.55,2186.7,2185.8,14.57495841]
[1750602781791,1.1323,2186.9,2186.8,4.57289189]
[1750602781948,11.691,2186.6,2186.5,4.57351932]
[1750602782149,0.40743044,2187.2,2187.1,4.57226464]
[1750602782547,0.40743044,2187.2,2186.3,4.5739377]
[1750602782894,7.44818601,2187.2,2186.0,4.57456541]
[1750602783095,5.12247795,2187.0,2185.4,4.57582135]
[1750602783301,0.55,2187.0,2185.7,0.44919432]
[1750602783446,10.99,2187.1,2185.4,21.73128256]
[1750602783642,16.522,2187.0,2186.9,4.57268279]
[1750602783849,16.522,2187.0,2186.2,1.1419]
[1750602784100,10.99,2187.1,2186.2,1.1419]
[1750602784250,16.521,2187.0,2186.9,4.57258298]
[1750602784673,0.40743044,2187.2,2187.1,4.57226464]
[1750602784844,0.169118,2187.2,2187.1,14.61797634]
[1750602785066,0.169118,2187.2,2187.1,15.03844684]
[1750602785899,0.169118,2187.2,2187.1,14.57226464]
[1750602786062,0.169118,2187.2,2187.1,15.12226464]
[1750602786410,0.169118,2187.2,2187.1,17.20552104]
[1750602787701,1.7522,2188.2,2187.1,17.20552104]
[1750602787702,0.005,2189.0,2187.7,10.55]
[1750602787917,4.836,2189.3,2189.2,4.56787867]
[1750602787918,3.841,2189.3,2189.2,4.56787867]
[1750602788120,3.841,2189.3,2189.2,30.88060215]
[1750602788314,0.2287461,2189.4,2189.3,4.56767003]
[1750602788613,1.1972,2190.3,2189.8,14.56662708]
[1750602788916,11.672,2191.0,2190.6,4.56480873]
[1750602789121,11.671,2190.9,2190.5,0.04564682]
[1750602789274,11.671,2190.8,2190.3,10.0]
[1750602789479,4.835,2191.1,2190.5,10.0]
[1750602789844,1.1438,2191.8,2190.7,10.0]
[1750602790143,4.835,2191.8,2191.5,4.56308464]
[1750602790291,1.1438,2193.0,2191.5,14.56308464]
[1750602790479,0.51568116,2193.7,2191.5,14.56308464]
[1750602790480,0.51568116,2193.7,2193.4,4.55912867]
[1750602790681,1.38241068,2194.4,2191.6,10.0]
[1750602790682,5.93951233,2194.4,2193.1,10.0]
[1750602790907,1.1438,2194.4,2193.7,4.55850845]
[1750602791088,1.1438,2194.4,2193.0,16.31272348]
[1750602791089,1.1438,2194.4,2193.1,10.0]
[1750602791291,1.1438,2194.4,2192.8,5.77135832]
[1750602791292,4.832,2193.7,2192.8,5.77135832]
[1750602791581,4.55949527,2193.3,2192.2,1.211]
[1750602791805,27.471,2193.2,2192.2,1.211]
[1750602792005,1.1438,2193.5,2192.3,4.56141951]
[1750602792209,16.49,2193.3,2192.2,1.211]
[1750602792410,4.832,2193.3,2192.2,1.211]
[1750602792610,4.832,2193.3,2192.2,3.8442564]
[1750602792813,4.832,2193.3,2191.8,1.211]
[1750602793016,1.1438,2192.9,2191.3,1.211]
[1750602793222,1.1438,2192.9,2189.2,2.21441214]
[1750602793223,27.468,2192.8,2190.7,4.56466382]
[1750602793405,11.1438,2192.6,2190.9,16.31272348]
[1750602793729,5.11124245,2192.4,2191.6,4.56284563]
[1750602794032,0.55,2192.0,2190.8,4.29733587]
[1750602794242,10.55,2191.8,2190.8,4.29733587]
[1750602794516,10.55,2191.6,2190.1,1.211]
[1750602794721,0.55,2190.7,2189.5,16.31272348]
[1750602794925,1.1438,2190.8,2189.6,1.63127235]
[1750602794926,0.55,2190.5,2189.6,1.63127235]
[1750602795238,0.55,2190.5,2189.4,4.56734076]
[1750602795239,0.55,2190.3,2189.4,0.04566279]
[1750602795441,0.55,2190.3,2187.5,3.75844429]
[1750602795442,1.1438,2190.3,2188.5,16.31272348]
[1750602795743,0.55,2190.1,2188.4,4.56943442]
[1750602795945,0.55,2190.1,2188.6,4.56913095]
[1750602795946,16.474,2190.0,2188.6,4.56913095]
[1750602796089,0.55,2189.7,2188.3,4.56975734]
[1750602796293,0.55,2189.5,2188.3,4.56975734]
[1750602796489,0.55,2189.3,2187.9,16.31272348]
[1750602796696,0.55,2189.1,2187.9,16.31272348]
[1750602796934,16.472,2189.0,2188.0,4.57038391]
[1750602797242,1.1438,2189.0,2188.1,0.04569088]
[1750602797550,16.471,2188.9,2188.5,4.56929979]
[1750602797696,0.55,2188.8,2187.2,1.211]
[1750602797898,10.0,2189.5,2187.2,1.211]
[1750602797899,1.1841,2189.4,2187.5,1.1207]
[1750602798219,0.55,2189.2,2187.7,4.57101065]
[1750602798420,16.469,2189.1,2187.8,0.91422106]
[1750602798605,0.55,2189.0,2187.7,0.6]
[1750602798806,0.55,2189.0,2188.5,4.56914453]
[1750602799001,5.11836915,2189.0,2188.3,4.56957422]
[1750602799231,5.11836915,2189.0,2187.7,0.6]
[1750602799232,10.55,2189.2,2187.7,0.6]
[1750602799474,5.11878236,2188.8,2187.7,4.57101065]
[1750602799632,5.11878236,2188.8,2187.0,4.57232781]
[1750602799633,0.55,2188.6,2187.0,4.57232781]
[1750602799848,16.467,2188.5,2187.0,4.57232781]
[1750602800146,1.1234,2188.7,2185.9,0.1911534]
[1750602800147,4.56663974,2189.8,2188.9,4.56838316]
[1750602800302,5.706,2190.0,2187.5,0.04569028]
[1750602800303,10.0,2189.5,2187.5,0.04569028]
[1750602800509,4.829,2189.4,2188.7,4.56885636]
[1750602800708,11.638,2189.3,2188.7,10.0]
[1750602801007,1.1234,2188.9,2187.6,1.1889]
[1750602801315,16.466,2188.8,2187.8,10.0]
[1750602801515,10.975,2188.7,2188.6,10.0]
[1750602801714,1.1234,2189.5,2188.4,10.0]
[1750602801715,11.636,2188.9,2188.4,10.0]
[1750602801907,11.636,2188.9,2188.5,4.56926576]
[1750602802107,11.636,2188.9,2188.6,4.56903082]
[1750602802407,1.1234,2188.7,2187.7,4.57101065]
[1750602802634,1.1234,2188.7,2187.5,10.0]
[1750602802948,0.55,2188.6,2187.7,1.11889]
[1750602803251,1.1234,2188.7,2187.8,4.57080171]
[1750602803456,16.464,2188.6,2187.6,10.0]
[1750602803762,11.633,2188.9,2188.8,14.56871345]
[1750602804052,11.633,2188.9,2188.7,4.56878807]
[1750602804224,1.1234,2189.2,2189.1,4.56808734]
[1750602804549,16.462,2189.5,2189.4,4.5674614]
[1750602804723,16.462,2189.5,2188.5,1.2112]
[1750602804724,27.437,2189.5,2188.5,1.2112]
[1750602804928,27.437,2189.5,2189.4,4.5674614]
[1750602805652,27.434,2189.5,2189.4,14.61313451]
[1750602805812,27.434,2189.5,2189.4,14.5674614]
[1750602806015,27.434,2189.5,2189.4,16.48097403]
[1750602806218,27.434,2189.5,2189.4,14.5674614]
[1750602806637,15.804,2189.5,2189.4,14.5674614]
[1750602806848,27.432,2189.5,2189.4,14.5674614]
[1750602807216,1.2103,2190.7,2190.6,4.56495937]
[1750602807418,4.786,2190.7,2189.9,0.04565145]
[1750602807649,11.626,2190.6,2189.8,10.0]
[1750602807850,11.626,2190.6,2189.6,1.0]
[1750602808159,12.1853,2190.9,2189.7,4.61240609]
[1750602808459,12.1853,2190.9,2190.8,4.56454263]
[1750602808661,12.1853,2190.9,2190.1,14.56600155]
[1750602808662,27.385,2190.9,2190.4,10.0]
[1750602808866,27.385,2190.9,2190.7,4.56461758]
[1750602809162,27.385,2190.9,2190.5,4.56514288]
[1750602809516,10.975,2190.9,2190.8,4.56454263]
[1750602809868,28.4775,2190.9,2189.4,4.56736771]
[1750602810026,28.4775,2190.9,2189.7,4.56668922]
[1750602810027,0.55,2190.7,2189.7,4.56668922]
[1750602810226,0.55,2190.7,2189.9,4.56625748]
[1750602810428,0.55,2190.5,2189.9,4.56626516]
[1750602810622,0.55,2190.3,2189.2,4.56787867]
[1750602810926,15.77284484,2190.8,2189.5,4.56725279]
[1750602810927,1.2081,2190.8,2189.5,4.56725279]
[1750602811127,16.403,2190.7,2190.6,4.56495937]
[1750602811343,4.785,2190.7,2190.6,14.56495937]
[1750602811547,10.974,2191.8,2190.7,4.56475099]
[1750602811859,16.402,2191.7,2190.9,14.56425873]
[1750602812063,4.785,2191.7,2191.6,4.56287643]
[1750602812268,16.401,2191.7,2191.6,4.56287643]
[1750602812436,16.401,2191.7,2190.9,2.45642587]
[1750602812637,16.401,2191.7,2191.4,4.56313371]
[1750602812855,16.398,2191.6,2189.1,0.5]
[1750602813177,10.974,2191.8,2189.1,0.5]
[1750602813178,16.397,2191.5,2191.1,4.56380494]
[1750602813478,16.397,2191.5,2190.3,5.56096128]
[1750602813479,16.397,2191.5,2190.3,5.14269811]
[1750602813638,16.397,2191.5,2190.7,10.0]
[1750602813846,1.7581,2191.4,2190.4,4.56527363]
[1750602814155,1.2081,2191.4,2190.7,10.0]
[1750602814358,16.395,2191.3,2190.9,4.56427478]
[1750602814530,20.9586354,2191.3,2190.7,4.5646068]
[1750602814870,20.95851816,2191.3,2190.7,4.56465784]
[1750602815039,0.55,2191.2,2190.7,4.56456928]
[1750602815245,16.393,2191.1,2190.6,4.56493688]
[1750602815440,0.55,2191.0,2189.7,1.2062]
[1750602815760,0.55,2191.3,2190.9,4.5642601]
[1750602816061,4.784,2190.9,2189.9,0.6]
[1750602816264,27.358,2190.8,2190.4,4.56523829]
[1750602816463,1.162,2190.7,2189.3,1.74580787]
[1750602816772,1.162,2190.7,2190.6,4.56495937]
[1750602817081,10.97,2190.8,2190.7,4.56475099]
[1750602817285,27.356,2190.8,2190.7,4.56475099]
[1750602817845,27.356,2190.8,2190.7,14.56475099]
[1750602818253,27.356,2190.8,2190.5,10.0]
[1750602818547,27.356,2190.8,2189.1,4.56806853]
[1750602818548,0.55,2190.3,2188.5,4.56933973]
[1750602818754,1.162,2190.4,2188.9,1.1684]
[1750602818992,16.38,2190.3,2190.2,4.56579307]
[1750602819193,1.162,2191.0,2190.1,10.0]
[1750602819376,4.783,2190.6,2190.1,10.0]
[1750602819683,4.783,2190.6,2190.5,4.56516776]
[1750602819882,4.783,2190.6,2189.9,4.56641855]
[1750602820085,16.378,2190.5,2189.9,10.0]
[1750602820284,10.969,2190.9,2190.5,4.56496751]
[1750602820485,16.377,2190.8,2190.4,4.56537338]
[1750602820792,10.969,2190.9,2189.4,20.8362146]
[1750602820793,10.969,2190.9,2190.1,10.0]
[1750602821102,16.376,2190.8,2190.7,4.56475099]
[1750602821289,10.969,2190.9,2190.8,4.56454263]
[1750602821492,10.969,2190.9,2190.8,14.56454263]
[1750602821654,10.969,2190.9,2190.0,10.45316032]
[1750602821655,27.344,2190.9,2190.0,10.45316032]
[1750602821851,27.344,2190.9,2190.2,14.56575158]
[1750602822108,16.373,2190.8,2189.9,10.0]
[1750602822312,10.969,2190.9,2190.8,4.56454263]
[1750602822512,4.783,2191.3,2191.2,4.56364019]
[1750602822679,4.783,2191.3,2191.2,14.56364019]
[1750602822680,16.372,2191.3,2191.2,14.56364019]
[1750602823199,10.969,2191.6,2191.2,10.0]
[1750602823400,16.371,2191.5,2191.2,14.56362569]
[1750602823585,16.371,2191.5,2191.4,4.56329287]
[1750602823782,16.371,2191.5,2191.2,10.0]
[1750602823996,16.56792336,2191.5,2191.2,10.0]
[1750602824308,16.56792336,2191.5,2190.3,16.26886676]
[1750602824309,16.56792336,2191.5,2190.6,4.56495937]
[1750602824511,16.56792336,2191.5,2190.9,4.56415152]
[1750602824708,11.583,2191.4,2190.8,10.0]
[1750602824878,11.583,2191.4,2191.3,4.56350111]
[1750602825072,16.365,2191.4,2191.3,4.56341149]
[1750602825315,16.365,2191.4,2191.3,4.56350111]
[1750602825480,0.19692336,2191.5,2191.4,14.56329287]
[1750602825679,16.56092336,2191.5,2191.4,14.56329287]
[1750602825890,0.19692336,2191.5,2191.4,14.56329287]
[1750602826092,16.55992336,2191.5,2191.1,10.0]
[1750602826409,16.55992336,2191.5,2191.1,4.56372105]
[1750602826614,16.55992336,2191.5,2191.1,4.56378176]
[1750602826818,16.55992336,2191.5,2190.9,10.0]
[1750602826819,20.92132359,2191.4,2190.9,14.56418134]
[1750602826977,20.92132359,2191.4,2190.1,17.43726676]
[1750602826978,0.55,2191.3,2190.1,16.26886676]
[1750602827179,1.1208,2191.2,2190.2,0.42148086]
[1750602827373,1.1208,2191.2,2190.0,0.42149232]
[1750602827374,0.55,2191.1,2190.0,0.42149232]
[1750602827732,4.56438519,2190.9,2190.4,4.5652721]
[1750602827897,11.574,2191.0,2190.3,4.5655539]
[1750602827898,4.5646716,2190.8,2190.3,4.5655539]
[1750602828225,4.5645582,2190.8,2189.8,0.45076123]
[1750602828382,4.56567428,2190.3,2189.8,0.45076123]
[1750602828726,1.6708,2190.4,2188.8,1.1956]
[1750602828727,0.55,2189.9,2189.4,4.98918481]
[1750602828892,10.966,2190.2,2189.5,0.42173531]
[1750602829092,4.782,2189.8,2189.3,4.98925229]
[1750602829288,11.57,2189.7,2189.6,14.5670442]
[1750602829477,11.57,2189.7,2189.5,4.56725279]
[1750602829697,10.966,2190.2,2190.1,4.56600155]
[1750602829897,4.783,2189.9,2189.8,14.56662708]
[1750602830510,10.966,2190.2,2190.1,14.56600155]
[1750602830823,27.316,2190.2,2190.1,14.56600155]
[1750602831511,0.005,2191.7,2190.1,14.56600155]
[1750602831714,12.1883,2191.0,2190.2,1.91321811]
[1750602831937,11.565,2190.9,2190.8,4.56454263]
[1750602832138,10.968,2191.0,2190.9,4.56433429]
[1750602832347,22.532,2191.0,2190.9,14.56433429]
[1750602832538,22.532,2191.0,2190.9,16.93369399]
[1750602832765,22.53,2191.0,2190.9,16.93369399]
[1750602832901,22.53,2191.0,2190.9,14.56433429]
[1750602833247,22.53,2191.0,2190.9,10.0]
[1750602833547,27.31,2191.0,2190.9,14.56433429]
[1750602833842,27.31,2191.0,2190.9,10.0]
[1750602834154,10.968,2191.0,2190.8,4.56436395]
[1750602834455,16.339,2190.9,2190.4,4.56523945]
[1750602834592,20.90335185,2190.9,2189.7,16.26886676]
[1750602834798,1.1978,2190.8,2189.8,6.31672561]
[1750602835034,4.56509285,2190.6,2190.0,4.56602288]
[1750602835228,1.1978,2190.3,2189.8,4.56660349]
[1750602835433,5.76342568,2190.3,2189.6,4.56700034]
[1750602835642,1.1978,2190.3,2188.8,16.26886676]
[1750602835805,4.5664573,2189.9,2188.9,0.38137082]
[1750602836010,1.1978,2189.4,2188.9,0.38137082]
[1750602836228,16.281,2189.3,2189.1,4.56789437]
[1750602836427,16.281,2189.3,2189.2,4.56787867]
[1750602836914,10.967,2189.8,2188.6,4.56913095]
[1750602837234,10.967,2189.8,2189.3,4.56767003]
[1750602837405,22.517,2189.8,2189.7,14.56683563]
[1750602837732,22.517,2189.8,2189.7,4.56683563]
[1750602837733,10.967,2189.8,2189.7,4.56683563]
[1750602837939,22.514,2189.8,2189.7,14.56683563]
[1750602838313,22.514,2189.8,2189.1,0.45065416]
[1750602838522,10.967,2189.8,2189.7,4.56683563]
[1750602838718,10.967,2190.2,2189.7,4.56672903]
[1750602838902,1.1978,2189.7,2188.5,16.26886676]
[1750602839103,5.76463836,2189.7,2189.1,4.56808734]
[1750602839400,1.1978,2189.7,2188.9,4.56850472]
[1750602839619,1.1978,2189.7,2188.6,0.3814231]
[1750602839938,16.273,2189.6,2189.0,4.56829083]
[1750602840249,16.272,2189.5,2189.0,4.56815013]
[1750602840418,1.1978,2189.7,2188.6,0.3814231]
[1750602840605,4.73,2190.0,2188.9,5.71268603]
[1750602840808,1.1687,2189.8,2188.9,4.56848603]
[1750602841007,1.1687,2189.8,2188.7,4.56885353]
[1750602841221,4.56697044,2189.7,2188.8,0.38138825]
[1750602841516,5.73542194,2189.8,2189.2,4.56774356]
[1750602841716,16.267,2189.7,2188.8,0.38138825]
[1750602842243,5.73622551,2189.4,2188.8,0.38138825]
[1750602842448,4.5681061,2189.1,2188.6,4.56906953]
[1750602842620,4.5681061,2189.1,2187.6,16.26886676]
[1750602842621,4.56864596,2188.9,2188.3,4.56962613]
[1750602842815,4.73,2188.8,2187.6,17.41306676]
[1750602843029,1.1687,2188.7,2187.8,4.57080171]
[1750602843228,1.1687,2188.7,2187.6,0.38159746]
[1750602843229,0.55,2188.6,2187.6,0.38159746]
[1750602843430,5.73856836,2188.3,2187.6,0.38159746]
[1750602843709,1.1687,2188.7,2188.6,4.56913095]
[1750602844029,16.263,2188.7,2188.3,0.04569938]
[1750602844230,16.263,2188.7,2187.6,0.38159746]
[1750602844433,0.55,2188.5,2187.6,0.38159746]
[1750602844633,1.1335,2188.4,2187.6,0.38159746]
[1750602844846,0.55,2188.0,2187.6,0.12946899]
[1750602845021,6.25451065,2187.7,2187.6,0.12946899]
[1750602845346,4.57125845,2187.6,2186.3,0.45527057]
[1750602845547,2.70887208,2187.6,2186.9,4.57253267]
[1750602845749,4.57148526,2187.5,2186.9,4.57253267]
[1750602845951,0.55,2187.6,2186.8,4.57271763]
[1750602846247,4.57142857,2187.5,2186.0,5.76689282]
[1750602846447,17.3965,2187.7,2186.0,5.76689282]
[1750602846448,0.55,2187.4,2186.1,4.57435615]
[1750602846635,5.8645,2187.7,2186.2,5.19646501]
[1750602846837,4.57142857,2187.5,2186.4,10.0]
[1750602847153,4.731,2187.5,2187.0,4.57227787]
[1750602847337,1.1335,2187.7,2187.3,10.0]
[1750602847537,22.497,2187.8,2187.7,14.57101065]
[1750602847738,22.497,2187.8,2187.7,4.57101065]
[1750602847916,22.497,2187.8,2187.7,14.57101065]
[1750602848555,22.499,2187.8,2187.7,14.57101065]
[1750602849417,22.88392215,2187.8,2187.7,14.57101065]
[1750602849615,11.35692215,2187.8,2187.7,14.57101065]
[1750602849923,0.38492215,2187.8,2187.7,34.49649835]
[1750602850112,4.733,2188.8,2188.5,14.56933973]
[1750602850315,1.1335,2189.1,2188.5,14.56933973]
[1750602850316,1.1335,2189.1,2189.0,4.56829602]
[1750602850514,12.6545,2189.1,2189.0,4.56829602]
[1750602850713,10.976,2189.5,2189.4,4.5674614]
[1750602850958,10.976,2189.5,2188.7,10.0]
[1750602850959,27.23,2189.5,2188.7,10.0]
[1750602851121,27.23,2189.5,2189.4,4.5674614]
[1750602851514,10.976,2189.5,2189.4,4.5674614]
[1750602851845,10.976,2189.5,2189.3,4.56764578]
[1750602851846,27.226,2189.5,2189.3,4.56764578]
[1750602852015,27.226,2189.5,2188.7,10.0]
[1750602852215,10.976,2189.5,2189.4,4.5674614]
[1750602852427,27.224,2189.5,2189.4,4.5674614]
[1750602852655,27.224,2189.5,2189.1,10.0]
[1750602852832,27.224,2189.5,2189.3,4.56753278]
[1750602853029,15.709,2189.5,2189.4,4.5674614]
[1750602853350,15.709,2189.5,2188.9,4.56850472]
[1750602853553,10.976,2190.3,2190.0,4.56621004]
[1750602853718,10.976,2190.3,2189.4,10.0]
[1750602853719,16.244,2190.2,2190.1,14.56600155]
[1750602854118,16.244,2190.2,2189.0,1.45685047]
[1750602854348,1.1335,2190.0,2189.4,10.0]
[1750602854565,11.508,2189.9,2189.8,4.56662708]
[1750602854800,11.508,2189.9,2189.8,14.56662708]
[1750602855115,12.1095,2190.3,2190.2,4.56579307]
[1750602855264,15.709,2190.3,2190.2,10.0]
[1750602855468,27.214,2190.3,2189.2,16.26886676]
[1750602855651,1.1335,2190.2,2188.9,1.1924]
[1750602855851,1.6835,2189.9,2188.5,5.76168045]
[1750602856110,0.55,2189.7,2188.2,16.26886676]
[1750602856393,27.211,2189.6,2188.8,4.56853108]
[1750602856575,1.1335,2189.1,2188.1,1.1924]
[1750602856777,11.5,2189.0,2188.6,4.56897147]
[1750602856979,4.56875271,2188.8,2188.0,5.01782512]
[1750602857308,9.30204767,2188.7,2188.1,4.57002924]
[1750602857506,22.474,2188.6,2187.5,4.57124535]
[1750602857666,22.474,2188.6,2187.3,1.1924]
[1750602857667,11.497,2188.5,2187.3,1.1924]
[1750602857857,4.57009297,2188.2,2187.3,1.1924]
[1750602858060,4.57071436,2187.9,2186.9,5.76492785]
[1750602858260,4.733,2187.8,2186.9,1.65853714]
[1750602858470,4.733,2187.8,2186.4,20.84252806]
[1750602858471,12.6614,2187.7,2187.4,4.57159713]
[1750602858681,10.975,2187.6,2186.5,1.2046]
[1750602858965,15.54626548,2187.6,2186.5,1.2046]
[1750602859158,4.57156038,2187.5,2186.9,4.57265035]
[1750602859360,4.57158841,2187.5,2186.8,4.57284149]
[1750602859572,10.975,2187.6,2186.5,16.26886676]
[1750602859774,16.227,2187.5,2187.1,4.57208592]
[1750602860005,20.79844866,2187.5,2186.4,4.57355772]
[1750602860189,16.227,2187.5,2186.8,4.57274598]
[1750602860388,16.226,2187.4,2186.6,4.57331016]
[1750602860571,16.226,2187.4,2187.2,4.57198253]
[1750602860778,16.226,2187.4,2186.6,4.57331016]
[1750602861090,16.226,2187.4,2186.7,14.57292529]
[1750602861284,19.4032474,2187.4,2186.2,1.02611175]
[1750602861487,16.226,2187.4,2186.2,1.02611175]
[1750602861688,0.55,2187.3,2186.3,0.04573106]
[1750602861874,1.1962,2187.2,2187.1,4.57226464]
[1750602862079,17.4182,2187.2,2187.0,10.0]
[1750602862275,17.4182,2187.2,2186.9,14.5726651]
[1750602862502,17.4182,2187.2,2186.9,10.0]
[1750602862799,0.55,2187.1,2185.9,0.45854015]
[1750602863000,4.57272354,2186.9,2186.3,4.57380631]
[1750602863310,11.485,2186.8,2185.7,1.2297]
[1750602863511,11.485,2186.8,2186.4,4.57356815]
[1750602863668,0.55,2186.7,2185.7,1.2297]
[1750602863868,11.485,2186.8,2185.7,1.68517498]
[1750602863869,10.98,2186.6,2185.7,1.68517498]
[1750602864103,10.98,2186.6,2185.7,0.62607797]
[1750602864425,0.55,2186.0,2185.1,4.57638015]
[1750602864714,1.1962,2185.8,2185.0,4.80531347]
[1750602864884,1.1962,2185.8,2185.0,0.2287461]
[1750602864885,5.7712687,2185.8,2185.0,0.2287461]
[1750602865200,4.57532941,2185.7,2185.0,0.2287461]
[1750602865405,16.10553138,2185.6,2185.0,0.2287461]
[1750602865602,10.98,2185.6,2185.0,0.2287461]
[1750602865804,16.219,2185.5,2185.0,0.2287461]
[1750602866303,16.147,2185.4,2185.0,0.2287461]
[1750602866908,6.32264959,2185.1,2185.0,0.2287461]
[1750602867081,1.1962,2185.1,2183.7,1.69856731]
[1750602867280,16.143,2185.0,2184.2,4.57833531]
[1750602867480,16.143,2185.0,2184.5,4.57753758]
[1750602867802,16.143,2185.0,2184.4,4.57783971]
[1750602868001,16.143,2185.0,2184.0,4.57875457]
[1750602868302,16.143,2185.0,2184.5,4.577522]
[1750602868482,16.143,2185.0,2184.5,4.57763007]
[1750602868668,20.71982638,2185.0,2184.5,10.0]
[1750602868867,4.57702639,2184.9,2184.2,4.57813844]
[1750602869203,16.144,2184.8,2184.0,2.08476213]
[1750602869405,5.77280999,2185.1,2183.7,11.69856731]
[1750602869608,4.669,2184.7,2184.3,4.57804882]
[1750602869917,4.669,2184.7,2183.7,1.69856731]
[1750602869918,22.461,2184.6,2183.7,1.2297]
[1750602870089,22.461,2184.6,2183.8,0.04578565]
[1750602870402,1.1962,2185.1,2183.8,0.04578565]
[1750602870403,1.1962,2185.1,2184.6,4.57742463]
[1750602870700,4.57556036,2185.6,2184.9,4.5768685]
[1750602870701,27.126,2185.0,2184.9,4.5768685]
[1750602870870,27.126,2185.0,2184.6,10.0]
[1750602871071,4.57765222,2184.6,2184.0,4.57873664]
[1750602871370,16.136,2184.5,2183.3,5.80195284]
[1750602871572,16.136,2184.5,2184.0,10.0]
[1750602871801,16.136,2184.5,2184.2,10.0]
[1750602872114,4.67,2184.5,2184.4,10.0]
[1750602872279,16.135,2184.5,2183.6,0.45750795]
[1750602872487,4.57799687,2184.4,2183.7,4.57924169]
[1750602872803,4.57799687,2184.4,2183.2,0.46250377]
[1750602872804,1.1667,2184.1,2183.2,0.46250377]
[1750602873019,1.1667,2184.1,2183.6,4.57947519]
[1750602873020,22.456,2184.0,2183.6,4.57947519]
[1750602873177,22.456,2184.0,2182.9,17.46366676]
[1750602873370,22.456,2184.0,2183.1,4.5806422]
[1750602873570,27.03484457,2184.0,2183.4,4.57988486]
[1750602873811,11.84692215,2183.9,2183.0,0.04579892]
[1750602874018,11.84692215,2183.9,2183.0,2.25484962]
[1750602874385,11.84692215,2183.9,2183.0,2.2090507]
[1750602874588,4.57948834,2183.7,2182.7,4.81020214]
[1750602874788,4.67,2183.6,2183.1,4.58044406]
[1750602874990,1.1331,2183.5,2182.7,0.2287461]
[1750602875707,0.38492215,2183.9,2183.8,14.57917391]
[1750602876011,11.459,2184.2,2184.1,4.57854493]
[1750602876211,4.671,2184.4,2184.3,4.57812571]
[1750602876396,16.127,2184.4,2184.3,14.57812571]
[1750602877399,12.1271,2184.8,2184.3,10.0]
[1750602877695,15.665,2184.8,2184.7,14.57728749]
[1750602878014,15.665,2184.8,2183.9,1.2258]
[1750602878015,11.452,2184.8,2183.9,1.2258]
[1750602878217,11.451,2184.7,2184.4,4.57789098]
[1750602878523,11.451,2184.7,2183.9,11.2258]
[1750602878675,11.451,2184.7,2184.0,0.0457798]
[1750602878873,11.451,2184.7,2184.4,4.57787863]
[1750602879076,5.8502,2184.8,2184.5,10.0]
[1750602879077,1.1782,2184.8,2184.5,10.0]
[1750602879276,16.121,2184.7,2184.6,4.57749702]
[1750602879511,16.121,2184.7,2184.1,4.57854493]
[1750602879678,16.121,2184.7,2183.8,10.0]
[1750602879879,4.57765789,2184.6,2183.5,1.2258]
[1750602880080,1.1782,2184.8,2184.2,10.0]
[1750602880381,16.117,2184.7,2184.4,4.57790821]
[1750602880614,16.117,2184.7,2184.4,10.0]
[1750602880785,16.117,2184.7,2184.3,14.57811888]
[1750602880988,16.117,2184.7,2184.3,14.57798006]
[1750602881191,16.117,2184.7,2184.3,10.0]
[1750602881493,16.117,2184.7,2184.4,4.57771409]
[1750602881689,11.443,2184.6,2184.0,10.0]
[1750602881888,11.443,2184.6,2184.5,4.57770656]
[1750602882291,11.443,2184.6,2184.1,4.5785011]
[1750602882501,4.672,2184.7,2184.5,4.57754959]
[1750602882714,11.44,2184.6,2184.5,10.0]
[1750602882922,4.672,2185.0,2184.3,1.2258]
[1750602883078,11.436,2184.9,2184.3,1.12258]
[1750602883280,11.436,2184.9,2184.0,10.0]
[1750602883477,4.57721183,2184.8,2184.0,14.57873184]
[1750602883715,11.436,2184.9,2184.0,14.57873184]
[1750602883716,4.57730644,2184.7,2184.1,4.57839454]
[1750602883901,11.436,2184.9,2184.3,10.0]
[1750602884103,11.436,2184.9,2183.5,1.68735608]
[1750602884304,0.55,2184.8,2183.6,1.79562228]
[1750602884512,1.1782,2184.6,2184.1,4.57847497]
[1750602884731,11.432,2184.5,2184.1,10.0]
[1750602884927,10.996,2184.4,2184.1,10.0]
[1750602885222,10.996,2184.4,2183.6,6.37516714]
[1750602885223,16.102,2184.3,2184.2,14.57822783]
[1750602885427,10.996,2184.4,2184.3,4.57812571]
[1750602885628,27.096,2184.4,2184.3,4.57812571]
[1750602885962,27.096,2184.4,2184.2,10.0]
[1750602886139,27.096,2184.4,2184.2,14.57823478]
[1750602886316,27.096,2184.4,2184.2,10.0]
[1750602886646,27.096,2184.4,2183.2,4.58043239]
[1750602886938,4.57856832,2184.1,2183.5,4.5796878]
[1750602887151,4.57899859,2183.9,2183.3,6.78051591]
[1750602887327,11.423,2184.0,2183.3,4.58021116]
[1750602887328,1.1693,2183.8,2183.3,4.58021116]
[1750602887504,1.1693,2183.8,2183.4,4.57985606]
[1750602887704,1.1693,2183.8,2183.4,10.0]
[1750602888004,1.1693,2183.8,2182.7,0.69534036]
[1750602888209,4.58001302,2183.4,2182.8,4.58127176]
[1750602888409,22.417,2183.3,2182.9,10.0]
[1750602888659,22.417,2183.3,2182.7,0.2287461]
[1750602888950,22.417,2183.3,2182.9,10.0]
[1750602889119,22.417,2183.3,2183.0,4.58084839]
[1750602889319,22.417,2183.3,2182.7,0.2287461]